bitfinex/quotes_SOLUSD_20240908
["timestamp","ask_amount","ask_price","bid_price","bid_amount"]
[1725787429661,15.9177,130.81,130.76,27.54742636]
[1725787433983,15.9177,130.81,130.76,11.0281605]
[1725787434142,26.3060974,130.81,130.72,16.401]
[1725787434339,55.3883974,130.8,130.74,11.0281605]
[1725787436344,45.0,130.8,130.74,11.0281605]
[1725787436654,15.9177,130.81,130.74,11.0281605]
[1725787438248,45.0,130.8,130.74,11.0281605]
[1725787442067,45.0,130.8,130.72,16.401]
[1725787442280,45.0,130.8,130.72,27.4291605]
[1725787442281,5.3521,130.79,130.72,27.4291605]
[1725787442567,45.0,130.78,130.72,27.4291605]
[1725787443151,50.3525,130.78,130.71,6.5015]
[1725787443967,45.0,130.78,130.72,11.0281605]
[1725787444167,5.3521,130.79,130.72,11.0281605]
[1725787444355,5.3521,130.79,130.71,17.5296605]
[1725787444567,45.0,130.78,130.71,11.0281605]
[1725787447373,60.7409974,130.78,130.71,11.0281605]
[1725787448155,5.3532,130.77,130.71,11.0281605]
[1725787448357,45.0,130.76,130.69,26.7402605]
[1725787448968,66.5003,130.76,130.69,11.0281605]
[1725787449173,66.5003,130.76,130.66,16.1606]
[1725787449174,61.147,130.76,130.66,16.1606]
[1725787449360,5.3545,130.74,130.67,11.0281605]
[1725787449555,45.0,130.73,130.67,11.0281605]
[1725787452867,50.3541,130.74,130.67,11.0281605]
[1725787453084,60.7424974,130.74,130.67,11.0281605]
[1725787453375,5.3547,130.73,130.67,11.0281605]
[1725787453676,45.0,130.72,130.67,11.0281605]
[1725787453876,16.5100974,130.74,130.67,11.0281605]
[1725787454079,45.0,130.73,130.67,11.0281605]
[1725787457663,45.0,130.73,130.65,11.0281605]
[1725787457881,5.3552,130.72,130.65,11.0281605]
[1725787458090,45.0,130.71,130.65,11.0281605]
[1725787461087,45.0,130.71,130.65,12.55876611]
[1725787461382,45.0,130.71,130.65,11.0281605]
[1725787462880,45.0,130.71,130.67,11.0281605]
[1725787463090,15.7429974,130.73,130.67,11.0281605]
[1725787463091,45.0,130.72,130.67,11.0281605]
[1725787463462,10.3883974,130.73,130.67,11.0281605]
[1725787464066,10.3883974,130.73,130.69,11.0281605]
[1725787473101,10.3883974,130.73,130.67,11.0281605]
[1725787473485,10.3883974,130.74,130.67,11.0281605]
[1725787474301,15.7424974,130.74,130.67,11.0281605]
[1725787474593,45.0,130.73,130.67,11.0281605]
[1725787475779,5.3557,130.71,130.64,6.2811]
[1725787476102,45.0,130.7,130.64,6.2811]
[1725787477284,44.8636105,130.7,130.64,6.2811]
[1725787477804,50.2193105,130.7,130.64,6.2811]
[1725787479298,5.3562,130.69,130.63,16.1606]
[1725787479488,45.0,130.68,130.6,21.372]
[1725787479691,45.0,130.68,130.6,32.4001605]
[1725787480708,45.0,130.68,130.62,11.0281605]
[1725787481686,10.3883974,130.69,130.62,11.0281605]
[1725787483105,15.7445974,130.69,130.62,11.0281605]
[1725787483285,55.3883974,130.68,130.62,11.0281605]
[1725787489000,60.7449974,130.68,130.62,11.0281605]
[1725787489199,60.7449974,130.68,130.6,32.4001605]
[1725787489384,5.357,130.67,130.6,32.4001605]
[1725787489702,45.0,130.66,130.6,32.4001605]
[1725787491303,50.3575,130.66,130.6,32.4001605]
[1725787491504,5.3579,130.65,130.6,15.1742]
[1725787491890,5.3579,130.65,130.57,6.4531]
[1725787492213,71.7975974,130.66,130.57,17.4812605]
[1725787492214,45.0,130.64,130.57,17.4812605]
[1725787492398,45.0,130.65,130.57,17.4812605]
[1725787496319,55.3883974,130.65,130.57,17.4812605]
[1725787498113,60.7461974,130.65,130.57,6.4531]
[1725787498326,10.3883974,130.64,130.57,17.4812605]
[1725787498701,15.7465974,130.64,130.57,17.4812605]
[1725787498903,45.0,130.63,130.57,17.4812605]
[1725787501115,55.3883974,130.63,130.57,17.4812605]
[1725787502018,21.7667,130.66,130.59,11.0281605]
[1725787502195,45.0,130.65,130.59,11.0281605]
[1725787503399,10.3883974,130.66,130.57,6.4531]
[1725787503598,10.3883974,130.66,130.6,11.0281605]
[1725787504112,10.3883974,130.66,130.57,17.4812605]
[1725787504113,5.3578,130.65,130.57,17.4812605]
[1725787504311,10.3883974,130.64,130.57,17.4812605]
[1725787504722,45.0,130.63,130.57,17.4812605]
[1725787505527,55.3883974,130.63,130.53,6.4531]
[1725787505699,5.3594,130.61,130.53,6.4531]
[1725787505895,45.0,130.6,130.54,11.0281605]
[1725787508944,10.3883974,130.61,130.56,11.0281605]
[1725787510109,45.0,130.6,130.55,11.0281605]
[1725787510330,10.3883974,130.59,130.55,11.0281605]
[1725787512833,10.3883974,130.59,130.53,6.4531]
[1725787513017,10.3883974,130.59,130.55,11.0281605]
[1725787515810,10.3883974,130.63,130.57,27.6534605]
[1725787516812,10.3883974,130.63,130.57,16.6253]
[1725787517029,10.3883974,130.63,130.58,11.0281605]
[1725787520438,10.3883974,130.63,130.58,17.4487605]
[1725787524137,10.3883974,130.63,130.58,18.9800501]
[1725787524322,10.3883974,130.63,130.6,11.0281605]
[1725787526720,10.3883974,130.63,130.58,17.4487605]
[1725787527236,10.3883974,130.63,130.58,6.4206]
[1725787527440,5.3585,130.64,130.58,6.4206]
[1725787527640,55.3883974,130.63,130.58,6.4206]
[1725787533321,10.3883974,130.63,130.58,6.4206]
[1725787545133,45.0,130.62,130.57,16.6253]
[1725787545350,55.3883974,130.62,130.57,16.6253]
[1725787547042,10.3883974,130.62,130.57,16.6253]
[1725787549745,7.99050612,130.67,130.6,11.0281605]
[1725787549953,10.3883974,130.66,130.6,11.0281605]
[1725787550565,15.7459974,130.66,130.6,11.0281605]
[1725787551266,45.0,130.65,130.6,11.0281605]
[1725787551559,10.3883974,130.64,130.6,11.0281605]
[1725787552358,45.0,130.63,130.59,6.3518]
[1725787552663,10.3883974,130.62,130.59,6.3518]
[1725787554434,15.7462974,130.65,130.59,6.3518]
[1725787555543,10.3883974,130.64,130.59,6.3518]
[1725787557664,5.3586,130.63,130.59,6.3518]
[1725787557844,10.3883974,130.62,130.59,6.3518]
[1725787558048,15.7473974,130.62,130.57,16.6253]
[1725787558464,10.3883974,130.62,130.57,16.6253]
[1725787559065,15.7477974,130.62,130.57,16.6253]
[1725787563477,5.3594,130.61,130.57,16.6253]
[1725787564545,5.3599,130.6,130.56,17.3799605]
[1725787564941,5.3595,130.61,130.56,17.3799605]
[1725787565570,15.7474974,130.62,130.58,11.0281605]
[1725787567767,5.3578,130.65,130.6,11.0281605]
[1725787568155,15.7461974,130.65,130.6,11.0281605]
[1725787568355,10.3883974,130.65,130.6,11.0281605]
[1725787568682,10.3883974,130.65,130.62,11.0281605]
[1725787570983,15.7461974,130.65,130.6,11.0281605]
[1725787571277,55.3883974,130.64,130.6,11.0281605]
[1725787571583,60.7466974,130.64,130.6,11.0281605]
[1725787571758,5.3586,130.63,130.58,17.6243605]
[1725787572073,60.7466974,130.64,130.58,17.6243605]
[1725787573874,15.7466974,130.64,130.6,11.0281605]
[1725787574080,15.5089,130.66,130.6,11.0281605]
[1725787574384,15.5089,130.66,130.59,11.0281605]
[1725787574385,45.0,130.65,130.59,11.0281605]
[1725787574588,5.3583,130.64,130.59,11.0281605]
[1725787575493,60.7462974,130.65,130.59,11.0281605]
[1725787576571,15.7462974,130.65,130.61,11.0281605]
[1725787576889,10.3883974,130.65,130.61,11.0281605]
[1725787579690,15.7461974,130.65,130.59,11.0281605]
[1725787581471,10.3883974,130.65,130.59,11.0281605]
[1725787581767,15.7461974,130.65,130.59,11.0281605]
[1725787583686,10.3883974,130.65,130.59,11.0281605]
[1725787584006,10.3883974,130.65,130.61,11.0281605]
[1725787589576,10.3883974,130.65,130.59,11.0281605]
[1725787590388,43.92848466,130.7,130.59,11.0281605]
[1725787590594,55.3883974,130.69,130.59,11.0281605]
[1725787590972,63.37890352,130.69,130.59,11.0281605]
[1725787591371,5.3575,130.66,130.61,11.0281605]
[1725787591896,5.3575,130.66,130.6,11.0281605]
[1725787591897,15.7458974,130.66,130.6,11.0281605]
[1725787592695,10.3883974,130.66,130.62,11.0281605]
[1725787609321,10.3883974,130.66,130.64,11.0281605]
[1725787609518,3.2472841,130.7,130.64,11.0281605]
[1725787609519,0.3,130.7,130.64,11.0281605]
[1725787609712,0.3,130.7,130.66,11.0281605]
[1725787611527,5.6559,130.7,130.61,15.4991]
[1725787611710,10.3883974,130.69,130.63,11.0281605]
[1725787611910,55.3883974,130.69,130.63,11.0281605]
[1725787612622,10.3883974,130.69,130.65,11.0281605]
[1725787614310,0.3,130.7,130.65,11.0281605]
[1725787614704,0.3,130.7,130.67,11.0281605]
[1725787615924,0.3,130.7,130.69,11.0281605]
[1725787617211,6.4549,130.72,130.69,31.0281605]
[1725787617517,6.4549,130.72,130.71,11.0281605]
[1725787617709,6.4549,130.72,130.61,65.4991]
[1725787617710,6.4549,130.72,130.61,28.40367808]
[1725787617920,6.4549,130.72,130.7,11.0281605]
[1725787620421,15.5604,130.71,130.7,11.0281605]
[1725787625223,15.5604,130.71,130.68,11.0281605]
[1725787627628,11.8102,130.72,130.68,11.0281605]
[1725787627834,5.3553,130.72,130.68,11.0281605]
[1725787628634,5.3546,130.73,130.68,11.0281605]
[1725787629055,45.0,130.72,130.68,11.0281605]
[1725787631146,5.3546,130.73,130.68,11.0281605]
[1725787633026,5.3549,130.72,130.66,11.0281605]
[1725787642627,2.97329267,130.76,130.7,11.0281605]
[1725787642827,54.50167294,130.76,130.7,11.0281605]
[1725787643833,5.3544,130.74,130.7,11.0281605]
[1725787644849,5.3544,130.74,130.68,11.0281605]
[1725787645234,14.85607294,130.74,130.68,11.0281605]
[1725787647746,5.3545,130.73,130.68,11.0281605]
[1725787647954,5.3545,130.73,130.66,11.0281605]
[1725787647955,45.0,130.72,130.66,11.0281605]
[1725787650632,45.0,130.72,130.68,11.0281605]
[1725787658975,5.3542,130.74,130.68,11.0281605]
[1725787659152,45.0,130.73,130.68,11.0281605]
[1725787659351,5.3542,130.74,130.68,11.0281605]
[1725787660145,5.3537,130.75,130.7,11.0281605]
[1725787660861,14.85537294,130.75,130.7,11.0281605]
[1725787661567,9.50167294,130.75,130.7,11.0281605]
[1725787668399,14.85537294,130.75,130.7,11.0281605]
[1725787668672,23.04,130.73,130.55,10.0]
[1725787668887,5.3561,130.7,130.63,11.0281605]
[1725787669053,60.76823405,130.69,130.63,11.0281605]
[1725787669259,15.76823405,130.69,130.63,11.0281605]
[1725787671073,5.3565,130.68,130.63,11.0281605]
[1725787671384,10.41203405,130.69,130.63,11.0281605]
[1725787671582,45.0,130.68,130.63,11.0281605]
[1725787672982,45.0,130.68,130.53,10.0]
[1725787672983,5.357,130.67,130.62,11.0281605]
[1725787673276,5.3574,130.66,130.62,11.0281605]
[1725787673467,5.3574,130.66,130.6,11.0281605]
[1725787673669,15.76943405,130.66,130.6,11.0281605]
[1725787676400,10.41203405,130.66,130.52,11.040794]
[1725787676561,5.3583,130.64,130.59,11.0281605]
[1725787677384,5.3579,130.65,130.59,11.0281605]
[1725787678679,45.0,130.64,130.59,11.0281605]
[1725787680284,5.3579,130.65,130.59,11.0281605]
[1725787680761,10.41203405,130.66,130.63,11.0281605]
[1725787680961,5.3568,130.68,130.63,11.0281605]
[1725787681161,10.41203405,130.7,130.63,11.0281605]
[1725787681162,5.357,130.67,130.63,11.0281605]
[1725787683092,15.76903405,130.67,130.63,11.0281605]
[1725787683597,10.41203405,130.66,130.61,11.0281605]
[1725787683899,10.41203405,130.66,130.53,65.0]
[1725787683900,15.76963405,130.66,130.6,11.0281605]
[1725787686887,10.41203405,130.66,130.6,11.0281605]
[1725787689793,10.41203405,130.66,130.53,20.0]
[1725787690005,5.3578,130.65,130.58,11.0281605]
[1725787690170,15.76953405,130.66,130.6,11.0281605]
[1725787690373,10.41203405,130.65,130.6,11.0281605]
[1725787693077,10.41203405,130.65,130.62,11.0281605]
[1725787695914,8.31105444,130.69,130.64,11.0281605]
[1725787695915,10.41203405,130.68,130.64,11.0281605]
[1725787701314,10.41203405,130.68,130.66,11.0281605]
[1725787701684,13.3829,130.77,130.66,11.0281605]
[1725787701878,13.3829,130.77,130.56,51.53068275]
[1725787701879,15.76663405,130.73,130.68,11.0281605]
[1725787707199,10.41203405,130.73,130.68,11.0281605]
[1725787707715,15.76653405,130.73,130.68,11.0281605]
[1725787708107,15.76653405,130.73,130.66,11.0281605]
[1725787710209,10.41203405,130.73,130.66,11.0281605]
[1725787710418,10.41203405,130.73,130.68,11.0281605]
[1725787711198,15.76683405,130.73,130.57,10.0]
[1725787711411,15.76683405,130.73,130.66,11.0281605]
[1725787713495,10.41203405,130.73,130.67,11.0281605]
[1725787713697,15.76663405,130.73,130.67,11.0281605]
[1725787717031,10.41203405,130.73,130.67,11.0281605]
[1725787718130,15.76663405,130.73,130.58,45.0]
[1725787718333,15.76663405,130.73,130.67,11.0281605]
[1725787726937,50.3553,130.72,130.66,11.0281605]
[1725787728035,5.3553,130.72,130.66,11.0281605]
[1725787729319,15.76663405,130.73,130.68,11.0281605]
[1725787729528,10.41203405,130.73,130.68,11.0281605]
[1725787729846,10.41203405,130.73,130.57,10.0]
[1725787729847,5.3552,130.72,130.67,11.0281605]
[1725787730039,15.76723405,130.72,130.67,11.0281605]
[1725787734346,15.76723405,130.72,130.69,11.0281605]
[1725787734347,10.41203405,130.72,130.69,11.0281605]
[1725787735530,7.66600545,130.76,130.71,11.0281605]
[1725787735839,23.04,130.81,130.73,11.0281605]
[1725787735840,10.41203405,130.78,130.73,11.0281605]
[1725787736042,10.41203405,130.8,130.75,11.0281605]
[1725787736939,10.41203405,130.8,130.79,11.0281605]
[1725787737144,0.8608969,130.88,130.79,11.0281605]
[1725787737340,6.2092969,130.88,130.73,10.0]
[1725787737645,6.2092969,130.88,130.83,11.0281605]
[1725787739546,6.2092969,130.88,130.8,11.0281605]
[1725787739547,9.01914256,130.88,130.8,11.0281605]
[1725787739849,5.3496,130.86,130.8,11.0281605]
[1725787740147,0.8608969,130.88,130.82,11.0281605]
[1725787742240,0.8608969,130.88,130.84,11.0281605]
[1725787744040,0.8608969,130.88,130.86,11.0281605]
[1725787747637,0.8608969,130.88,130.79,5.3468]
[1725787747831,0.8608969,130.88,130.84,11.0281605]
[1725787760349,6.2092969,130.88,130.74,20.0]
[1725787760544,6.2092969,130.88,130.82,11.0281605]
[1725787760863,5.3488,130.87,130.75,45.0]
[1725787761062,45.0,130.86,130.7,17.73683134]
[1725787761266,0.8608969,130.88,130.79,11.0281605]
[1725787761843,5.3493,130.86,130.7,20.76459232]
[1725787762064,45.0,130.85,130.8,11.0281605]
[1725787763986,45.0,130.85,130.7,20.76459232]
[1725787764149,45.0,130.85,130.8,11.0281605]
[1725787764643,5.3493,130.86,130.8,11.0281605]
[1725787768675,5.3489,130.87,130.8,11.0281605]
[1725787768968,45.0,130.86,130.8,11.0281605]
[1725787770745,3.83382864,130.88,130.71,65.0]
[1725787770746,6.2093969,130.88,130.82,11.0281605]
[1725787770966,0.8608969,130.88,130.82,11.0281605]
[1725787772749,45.8608969,130.88,130.82,11.0281605]
[1725787775873,51.2093969,130.88,130.72,10.0]
[1725787776061,51.2093969,130.88,130.81,11.0281605]
[1725787777259,45.8608969,130.88,130.81,11.0281605]
[1725787777463,5.3488,130.87,130.81,11.0281605]
[1725787777660,45.0,130.86,130.81,11.0281605]
[1725787782059,45.0,130.86,130.73,20.0]
[1725787782257,5.3497,130.85,130.71,20.0]
[1725787782472,5.3497,130.85,130.78,11.0281605]
[1725787782669,5.3497,130.85,130.71,20.0]
[1725787783082,5.3497,130.85,130.78,11.0281605]
[1725787784269,50.3493,130.86,130.78,11.0281605]
[1725787790299,50.3493,130.86,130.8,11.0281605]
[1725787795989,45.0,130.86,130.8,11.0281605]
[1725787797301,45.0,130.87,130.8,11.0281605]
[1725787799197,50.3488,130.87,130.8,11.0281605]
[1725787799400,50.3488,130.87,130.82,11.0281605]
[1725787800105,45.0,130.87,130.82,11.0281605]
[1725787800402,6.2093969,130.88,130.84,11.0281605]
[1725787800403,0.8608969,130.88,130.84,11.0281605]
[1725787800700,23.9008969,130.88,130.71,30.0]
[1725787800879,8.16931505,130.87,130.8,11.0281605]
[1725787801074,13.51821505,130.87,130.8,11.0281605]
[1725787801280,8.16931505,130.87,130.8,11.0281605]
[1725787801491,6.2092969,130.88,130.82,11.0281605]
[1725787802989,0.8608969,130.88,130.82,11.0281605]
[1725787803182,45.8608969,130.88,130.82,11.0281605]
[1725787804283,0.8608969,130.88,130.84,11.0281605]
[1725787805689,0.8608969,130.88,130.82,11.0281605]
[1725787805887,54.03021195,130.88,130.82,11.0281605]
[1725787806293,0.8608969,130.88,130.86,11.0281605]
[1725787816101,0.8608969,130.88,130.87,1.52786664]
[1725787816417,278.24,130.98,130.87,1.52786664]
[1725787816418,5.3447,130.97,130.87,45.0]
[1725787816616,5.3447,130.97,130.91,11.0281605]
[1725787816792,5.3451,130.96,130.91,11.0281605]
[1725787817117,13.51411505,130.97,130.89,11.0281605]
[1725787817305,8.16931505,130.97,130.89,11.0281605]
[1725787817704,45.0,130.96,130.89,11.0281605]
[1725787818313,50.3451,130.96,130.89,11.0281605]
[1725787818495,45.0,130.96,130.91,11.0281605]
[1725787818695,5.3452,130.96,130.91,11.0281605]
[1725787819914,23.34,130.98,130.8,10.0]
[1725787820212,5.3468,130.92,130.86,11.0281605]
[1725787820514,45.0,130.91,130.86,11.0281605]
[1725787820706,50.3472,130.91,130.85,11.0281605]
[1725787820913,45.0,130.91,130.85,11.0281605]
[1725787821890,5.3464,130.93,130.87,11.0281605]
[1725787822404,5.346,130.94,130.87,11.0281605]
[1725787822804,5.346,130.94,130.89,11.0281605]
[1725787823007,31.20931505,130.97,130.89,11.0281605]
[1725787823511,5.3458,130.95,130.89,11.0281605]
[1725787823722,5.346,130.94,130.89,11.0281605]
[1725787825723,5.346,130.94,130.87,11.0281605]
[1725787826013,45.0,130.93,130.87,11.0281605]
[1725787828924,50.3466,130.93,130.87,11.0281605]
[1725787829802,45.0,130.93,130.87,11.0281605]
[1725787830013,5.346,130.94,130.87,11.0281605]
[1725787830606,45.0,130.93,130.87,11.0281605]
[1725787834422,50.3464,130.93,130.87,11.0281605]
[1725787838022,50.3464,130.93,130.85,6.2741]
[1725787838211,5.3472,130.91,130.85,6.2741]
[1725787838414,5.3468,130.92,130.85,17.3022605]
[1725787839715,5.3472,130.91,130.85,17.3022605]
[1725787840327,5.3476,130.9,130.85,17.3022605]
[1725787841935,5.3473,130.91,130.85,17.3022605]
[1725787842228,5.3473,130.91,130.87,11.0281605]
[1725787846334,5.3473,130.91,130.85,17.3022605]
[1725787846335,45.0,130.9,130.85,17.3022605]
[1725787846532,50.3476,130.9,130.85,6.2741]
[1725787847926,5.348,130.89,130.85,6.2741]
[1725787848131,5.348,130.89,130.84,11.0281605]
[1725787848334,5.3484,130.88,130.73,17.99084715]
[1725787848537,45.0,130.9,130.83,11.0281605]
[1725787848709,5.3481,130.89,130.83,11.0281605]
[1725787848910,68.04,130.9,130.74,20.0]
[1725787849115,5.3488,130.87,130.81,11.0281605]
[1725787851231,28.3888,130.87,130.72,7.73683134]
[1725787851437,45.0,130.86,130.8,11.0281605]
[1725787851932,45.0,130.86,130.72,7.73683134]
[1725787852134,5.3499,130.85,130.79,11.0281605]
[1725787853237,50.3492,130.86,130.79,11.0281605]
[1725787854253,5.3497,130.85,130.79,11.0281605]
[1725787855246,45.0,130.84,130.79,11.0281605]
[1725787855537,45.0,130.84,130.8,11.0281605]
[1725787855746,23.04,130.87,130.8,11.0281605]
[1725787856039,5.3496,130.85,130.8,11.0281605]
[1725787856221,45.0,130.84,130.8,11.0281605]
[1725787857143,45.0,130.84,130.68,67.98449576]
[1725787857338,45.0,130.84,130.8,11.0281605]
[1725787860040,28.3893,130.86,130.8,11.0281605]
[1725787860244,45.0,130.85,130.8,11.0281605]
[1725787862750,5.3489,130.87,130.8,11.0281605]
[1725787862949,45.0,130.86,130.8,11.0281605]
[1725787863724,23.04,130.88,130.8,11.0281605]
[1725787863930,5.3488,130.87,130.8,11.0281605]
[1725787864855,5.3488,130.87,130.7,10.0]
[1725787865049,45.0,130.86,130.8,11.0281605]
[1725787867837,50.3495,130.86,130.8,11.0281605]
[1725787868238,0.3,130.92,130.82,11.0281605]
[1725787868452,45.0,130.9,130.82,11.0281605]
[1725787868953,68.04,130.9,130.82,11.0281605]
[1725787869335,5.3484,130.88,130.82,11.0281605]
[1725787870346,45.0,130.87,130.72,10.0]
[1725787870542,45.0,130.87,130.82,11.0281605]
[1725787873774,45.0,130.87,130.82,26.7184605]
[1725787875954,73.3889,130.87,130.82,15.6903]
[1725787877341,28.3894,130.86,130.82,15.6903]
[1725787877537,45.0,130.85,130.82,15.6903]
[1725787878351,50.3497,130.85,130.82,15.6903]
[1725787879167,5.3481,130.89,130.82,26.7184605]
[1725787881261,45.0,130.88,130.82,26.7184605]
[1725787881460,5.3492,130.86,130.82,15.6903]
[1725787881669,45.0,130.85,130.82,15.6903]
[1725787887285,50.3499,130.85,130.82,15.6903]
[1725787887573,23.04,130.84,130.82,15.6903]
[1725787887770,45.0,130.83,130.82,15.6903]
[1725787888065,50.3504,130.83,130.82,15.6903]
[1725787888268,73.3904,130.83,130.82,15.6903]
[1725787889370,5.3508,130.82,130.75,11.0281605]
[1725787889560,45.0,130.81,130.75,11.0281605]
[1725787889972,45.0,130.81,130.77,11.0281605]
[1725787890183,5.3508,130.82,130.77,11.0281605]
[1725787890959,5.3508,130.82,130.75,11.0281605]
[1725787891161,45.0,130.81,130.75,11.0281605]
[1725787891677,50.3513,130.81,130.75,11.0281605]
[1725787891973,5.3516,130.8,130.74,11.0281605]
[1725787892273,45.0,130.79,130.74,11.0281605]
[1725787892577,50.3522,130.79,130.64,7.98134976]
[1725787892781,68.04,130.79,130.64,7.98134976]
[1725787892953,68.04,130.79,130.71,11.0281605]
[1725787893161,5.3529,130.77,130.71,11.0281605]
[1725787893356,50.3534,130.76,130.63,7.71469426]
[1725787893653,50.3534,130.76,130.69,11.0281605]
[1725787893654,50.3533,130.76,130.69,11.0281605]
[1725787894354,5.3526,130.78,130.71,11.0281605]
[1725787894563,5.3526,130.78,130.63,17.71469426]
[1725787894564,45.0,130.77,130.73,11.0281605]
[1725787895958,45.0,130.78,130.73,11.0281605]
[1725787896864,50.3525,130.78,130.73,11.0281605]
[1725787897882,73.3925,130.78,130.73,11.0281605]
[1725787898286,73.3925,130.78,130.71,11.0281605]
[1725787898588,28.3931,130.77,130.71,11.0281605]
[1725787898761,45.0,130.76,130.71,11.0281605]
[1725787898965,28.3924,130.79,130.71,11.0281605]
[1725787899262,45.0,130.78,130.71,11.0281605]
[1725787899663,73.3925,130.78,130.71,11.0281605]
[1725787900390,45.0,130.78,130.71,11.0281605]
[1725787901888,50.3525,130.78,130.71,11.0281605]
[1725787904380,73.3925,130.78,130.71,11.0281605]
[1725787904676,28.3931,130.77,130.71,11.0281605]
[1725787904878,45.0,130.76,130.71,11.0281605]
[1725787906174,73.3933,130.76,130.6,25.9650153]
[1725787906386,28.3937,130.75,130.68,11.0281605]
[1725787906563,45.0,130.74,130.68,11.0281605]
[1725787907473,68.04,130.74,130.68,11.0281605]
[1725787908062,73.3943,130.74,130.68,11.0281605]
[1725787908479,73.3943,130.74,130.68,9.0281605]
[1725787911376,68.04,130.74,130.68,9.0281605]
[1725787913587,73.3943,130.74,130.68,9.0281605]
[1725787914875,45.0,130.74,130.68,9.0281605]
[1725787915984,68.02,130.74,130.68,9.0281605]
[1725787916878,68.02,130.74,130.59,11.02816]
[1725787917080,68.02,130.74,130.68,11.0281605]
[1725787917387,23.02,130.73,130.68,11.0281605]
[1725787917781,68.02,130.72,130.68,11.0281605]
[1725787918373,68.02,130.72,130.67,11.0281605]
[1725787918573,68.02,130.72,130.6,20.0]
[1725787918887,23.02,130.7,130.63,11.0281605]
[1725787919264,68.02,130.69,130.55,7.80513506]
[1725787919468,68.02,130.69,130.63,11.0281605]
[1725787920177,45.0,130.69,130.63,11.0281605]
[1725787920488,23.02,130.7,130.63,11.0281605]
[1725787921083,23.02,130.69,130.63,11.0281605]
[1725787921296,45.0,130.68,130.63,11.0281605]
[1725787922672,45.0,130.68,130.55,7.80513506]
[1725787922985,45.0,130.68,130.63,11.0281605]
[1725787923688,45.0,130.68,130.56,45.0]
[1725787923689,68.02,130.68,130.56,45.0]
[1725787923896,68.02,130.68,130.62,11.0281605]
[1725787926191,73.3766,130.68,130.56,45.0]
[1725787926401,23.02,130.66,130.61,11.0281605]
[1725787926775,45.0,130.65,130.61,11.0281605]
[1725787927191,23.02,130.68,130.63,11.0281605]
[1725787927388,45.0,130.67,130.63,11.0281605]
[1725787928000,68.02,130.67,130.63,11.0281605]
[1725787931606,73.377,130.67,130.61,11.0281605]
[1725787937107,68.02,130.67,130.63,11.0281605]
[1725787937286,23.02,130.68,130.63,11.0281605]
[1725787939304,23.02,130.68,130.62,11.0281605]
[1725787939536,23.02,130.66,130.62,11.0281605]
[1725787939814,45.0,130.67,130.62,11.0281605]
[1725787940178,68.02,130.67,130.62,11.0281605]
[1725787940696,73.3771,130.67,130.61,11.0281605]
[1725787941207,68.02,130.67,130.61,11.0281605]
[1725787944215,68.02,130.67,130.63,11.0281605]
[1725787955019,45.0,130.67,130.63,11.0281605]
[1725787955225,23.02,130.68,130.63,11.0281605]
[1725787956325,23.02,130.71,130.67,11.0281605]
[1725787957507,23.02,130.72,130.67,11.0281605]
[1725787958510,23.02,130.71,130.65,11.0281605]
[1725787959108,68.02,130.7,130.65,11.0281605]
[1725787964430,68.02,130.7,130.63,11.0281605]
[1725787965031,68.02,130.7,130.55,0.8608969]
[1725787965234,68.02,130.7,130.62,11.0281605]
[1725787965833,71.02567821,130.7,130.62,11.0281605]
[1725787966426,23.02,130.68,130.62,11.0281605]
[1725787966624,68.02,130.67,130.62,11.0281605]
[1725787967535,45.0,130.67,130.64,11.0281605]
[1725787967737,68.02,130.68,130.64,11.0281605]
[1725787968417,45.0,130.68,130.64,11.0281605]
[1725787968734,45.0,130.69,130.64,11.0281605]
[1725787969124,68.02,130.69,130.64,11.0281605]
[1725787971839,73.3761,130.69,130.64,11.0281605]
[1725787972045,73.3761,130.69,130.62,11.0281605]
[1725787973046,73.3761,130.69,130.64,11.0281605]
[1725787973741,45.0,130.69,130.64,11.0281605]
[1725787974822,23.02,130.68,130.64,11.0281605]
[1725787978646,23.02,130.68,130.62,11.0281605]
[1725787978857,68.02,130.67,130.62,11.0281605]
[1725787980340,23.02,130.67,130.62,11.0281605]
[1725787980730,5.3563,130.69,130.62,11.0281605]